bitfinex-derivatives/quotes_SOLF0:USTF0_20241017
["timestamp","ask_amount","ask_price","bid_price","bid_amount"]
[1729146361869,3.269,152.98,152.92,14.12]
[1729146363468,3.269,152.98,152.95,3.2694]
[1729146363670,3.269,152.98,152.95,6.46996853]
[1729146364470,3.2692,152.97,152.95,3.20056853]
[1729146364675,14.12,152.97,152.87,2.7983]
[1729146364972,3.2702,152.92,152.89,3.2707]
[1729146373870,3.27,152.93,152.91,12.3203]
[1729146374076,4.86,152.94,152.91,9.05]
[1729146374275,4.86,152.94,152.93,9.05]
[1729146374477,4.86,152.94,152.93,12.39654121]
[1729146375385,1.4629,152.98,152.93,12.39654121]
[1729146375588,4.86,152.97,152.94,9.05]
[1729146375787,4.86,152.97,152.93,3.34654121]
[1729146375986,4.86,152.97,152.92,14.13]
[1729146376387,3.2694,152.96,152.93,3.2698]
[1729146376587,3.2694,152.96,152.93,6.54786259]
[1729146383796,1.4348,153.01,152.93,3.27806259]
[1729146384002,3.2687,152.99,152.96,3.2692]
[1729146384593,3.2688,152.98,152.95,3.2694]
[1729146385598,4.86,153.0,152.95,3.2694]
[1729146385899,3.2695,152.95,152.93,3.25636014]
[1729146386100,3.2695,152.95,152.92,3.27]
[1729146386801,4.86,153.0,152.91,14.13]
[1729146386802,4.86,153.0,152.93,3.2699]
[1729146386998,3.2694,152.96,152.93,6.52017388]
[1729146387901,3.2691,152.98,152.94,3.2696]
[1729146388097,4.86,152.99,152.94,3.2696]
[1729146388900,4.86,152.99,152.97,3.2689]
[1729146389108,4.86,153.01,152.97,3.2689]
[1729146389290,4.86,153.01,152.95,14.13]
[1729146389494,8.1283,153.01,152.95,14.13]
[1729146390801,3.2683,153.01,152.95,14.13]
[1729146390997,15.4595,153.05,152.94,1.383]
[1729146390998,3.2679,153.03,153.0,3.2684]
[1729146395607,3.2683,153.01,152.98,3.2688]
[1729146395804,4.86,153.04,152.95,14.13]
[1729146396108,3.2681,153.02,152.97,3.2689]
[1729146396309,4.86,153.04,152.97,3.2689]
[1729146397104,3.2683,153.01,152.97,3.2689]
[1729146398510,4.86,153.04,152.95,14.13]
[1729146398697,3.2688,152.99,152.96,3.2692]
[1729146401004,3.2685,153.0,152.97,17.399]
[1729146403814,3.2685,153.0,152.99,9.04]
[1729146404212,3.2683,153.01,152.99,9.04]
[1729146404409,1.3295,153.05,153.0,9.04]
[1729146404709,1.3295,153.05,153.01,9.04]
[1729146404710,4.86,153.04,153.01,9.04]
[1729146404907,4.86,153.04,153.01,12.31600925]
[1729146405514,3.2678,153.03,153.01,12.31600925]
[1729146408016,3.2678,153.03,153.01,3.27600925]
[1729146408217,3.2678,153.03,153.0,12.3083]
[1729146410618,3.2678,153.03,153.0,9.04]
[1729146410813,3.2678,153.03,153.01,9.04]
[1729146411016,3.2678,153.03,153.01,12.34565907]
[1729146413719,8.1277,153.04,153.01,15.61385907]
[1729146414020,8.1277,153.04,153.02,9.04]
[1729146415418,8.1277,153.04,153.01,15.61385907]
[1729146419824,4.86,153.04,153.01,12.34565907]
[1729146420022,3.2678,153.03,153.01,12.34565907]
[1729146420624,4.86,153.04,153.01,12.34565907]
[1729146420826,8.1277,153.04,153.01,15.61385907]
[1729146421531,4.86,153.04,153.02,9.04]
[1729146421724,8.1276,153.04,153.02,9.04]
[1729146422031,13.2995,153.1,153.03,9.04]
[1729146422325,250.1108,153.22,153.09,9.04]
[1729146422326,132.65399327,153.11,153.09,9.04]
[1729146422527,127.79399327,153.11,153.09,9.04]
[1729146422719,4.86,153.12,153.09,12.3065]
[1729146422720,8.126,153.12,153.09,12.3065]
[1729146422924,8.126,153.12,153.09,15.59592409]
[1729146423324,8.126,153.12,153.09,12.32942409]
[1729146423530,3.2661,153.11,153.09,12.32942409]
[1729146424429,4.86,153.12,153.09,15.59592409]
[1729146424725,4.86,153.12,153.09,12.32942409]
[1729146425123,8.126,153.12,153.09,12.32942409]
[1729146425426,4.86,153.12,153.09,12.32942409]
[1729146425823,4.86,153.12,153.09,15.59572409]
[1729146426035,4.86,153.12,153.1,9.04]
[1729146426628,4.86,153.12,153.1,12.3063]
[1729146427132,4.86,153.12,153.1,9.04]
[1729146427326,4.86,153.12,153.1,12.29393432]
[1729146428131,3.2658,153.13,153.1,12.29393432]
[1729146428630,4.86,153.14,153.1,3.25393432]
[1729146428836,8.1256,153.14,153.12,9.04]
[1729146429629,3.2656,153.14,153.12,9.04]
[1729146434043,3.2656,153.13,153.1,12.23653567]
[1729146436741,13.9,153.15,153.1,3.19653567]
[1729146436943,3.2661,153.11,153.09,9.04]
[1729146437242,13.9,153.15,153.09,12.25094365]
[1729146437442,3.2659,153.12,153.09,12.25094365]
[1729146437751,4.86,153.15,153.11,9.04]
[1729146437947,3.2655,153.14,153.12,9.04]
[1729146438147,3.2655,153.14,153.12,12.33370009]
[1729146438440,3.2656,153.13,153.12,3.29370009]
[1729146438643,9.04,153.14,153.09,9.04]
[1729146438842,9.04,153.14,153.09,12.28828101]
[1729146439045,3.266,153.12,153.09,15.55468101]
[1729146440836,3.266,153.12,153.1,9.04]
[1729146441039,13.9,153.15,153.1,9.04]
[1729146441242,3.2657,153.13,153.1,9.04]
[1729146441648,13.9,153.15,153.09,6.51468101]
[1729146441849,3.266,153.12,153.09,12.28828101]
[1729146442050,9.04,153.14,153.1,9.04]
[1729146442352,3.2657,153.13,153.1,9.04]
[1729146442553,4.86,153.14,153.1,9.04]
[1729146442744,4.86,153.14,153.1,12.23142548]
[1729146444542,3.2661,153.11,153.1,12.23142548]
[1729146444742,3.2661,153.11,153.1,3.19142548]
[1729146444944,3.2661,153.11,153.09,9.04]
[1729146445442,3.2661,153.11,153.09,12.34186899]
[1729146446045,4.86,153.14,153.09,12.34186899]
[1729146446350,3.2662,153.11,153.09,12.34186899]
[1729146449251,3.2662,153.11,153.09,9.04]
[1729146449452,3.2662,153.11,153.09,12.30548569]
[1729146454353,3.2663,153.1,153.09,3.26548569]
[1729146454657,9.04,153.12,153.06,9.04]
[1729146454855,9.04,153.12,153.06,12.38816035]
[1729146455153,3.2666,153.09,153.06,12.38816035]
[1729146455751,3.2666,153.09,153.06,15.65526035]
[1729146457654,3.2666,153.09,153.08,9.04]
[1729146461345,4.86,153.14,153.06,3.34816035]
[1729146461552,3.2669,153.07,153.05,9.04]
[1729146461858,3.2669,153.07,153.05,12.33750986]
[1729146464852,3.2669,153.07,153.05,3.29750986]
[1729146465056,3.2669,153.07,153.05,9.04]
[1729146465257,3.2669,153.07,153.05,12.33957185]
[1729146465458,3.2669,153.07,153.05,3.29957185]
[1729146465662,3.2669,153.07,153.05,9.04]
[1729146465958,3.2669,153.07,153.05,12.37682561]
[1729146466158,3.2669,153.07,153.05,3.33682561]
[1729146466360,3.2669,153.07,153.05,9.04]
[1729146466554,3.2669,153.07,153.05,12.23695347]
[1729146471358,3.2669,153.07,153.05,3.19695347]
[1729146471559,3.2669,153.07,153.04,12.3075]
[1729146471957,3.2669,153.07,153.04,15.53550542]
[1729146472661,3.2669,153.07,153.05,9.04]
[1729146477963,4.86,153.1,153.05,9.04]
[1729146478665,3.2666,153.09,153.06,12.3071]
[1729146478866,4.86,153.1,153.06,9.04]
[1729146479167,3.2667,153.08,153.06,9.04]
[1729146482363,3.2667,153.08,153.05,12.3072]
[1729146495180,3.2673,153.05,153.04,3.22800542]
[1729146495388,9.04,153.05,152.99,9.04]
[1729146495680,9.04,153.02,152.96,3.25546965]
[1729146495992,3.2683,153.01,152.97,12.3089]
[1729146496679,3.2683,153.01,152.98,3.2688]
[1729146497286,3.2686,153.0,152.97,12.309]
[1729146497785,3.2686,153.0,152.98,9.04]
[1729146498087,3.2686,153.0,152.98,12.3088]
[1729146498383,3.2683,153.01,152.98,12.3088]
[1729146504183,3.2683,153.01,152.98,3.2688]
[1729146507199,3.2683,153.01,152.98,12.3088]
[1729146515001,4.84,153.02,152.98,9.04]
[1729146515205,8.108,153.02,152.99,3.2684]
[1729146515506,4.84,153.02,152.99,3.2684]
[1729146516400,3.2682,153.01,152.99,3.2684]
[1729146516904,4.84,153.02,153.0,9.04]
[1729146517104,16.6673,153.05,153.0,9.04]
[1729146517604,3.2679,153.03,153.0,9.04]
[1729146517902,127.80157567,153.08,153.02,9.04]
[1729146518108,8.1066,153.09,153.06,9.04]
[1729146518302,4.84,153.09,153.06,9.04]
[1729146518701,3.2668,153.08,153.06,9.04]
[1729146520197,3.2668,153.08,153.05,9.04]
[1729146521107,12.3068,153.08,153.04,12.3074]
[1729146522204,4.84,153.09,153.05,9.04]
[1729146522405,3.2666,153.09,153.05,12.3072]
[1729146522796,4.84,153.1,153.06,9.04]
[1729146522997,9.04,153.13,153.07,9.04]
[1729146523203,9.04,153.13,153.08,9.04]
[1729146523204,4.84,153.12,153.08,9.04]
[1729146523401,3.2662,153.11,153.07,12.3068]
[1729146527405,9.04,153.1,153.07,3.2668]
[1729146527610,12.3063,153.1,153.07,3.2668]
[1729146529421,6.1739,153.12,153.06,9.04]
[1729146529605,15.2139,153.12,153.08,3.2665]
[1729146529917,15.2139,153.12,153.07,9.04]
[1729146530104,3.2662,153.11,153.07,12.3068]
[1729146530711,15.2139,153.12,153.07,12.3068]
[1729146530915,3.2663,153.1,153.07,12.3068]
[1729146532906,9.04,153.11,153.03,3.1944296]
[1729146533117,9.04,153.08,153.03,9.04]
[1729146533317,9.04,153.08,153.03,12.37922877]
[1729146533724,9.04,153.08,153.04,9.04]
[1729146534414,3.267,153.07,153.04,15.58844621]
[1729146539815,3.2672,153.06,153.04,15.58844621]
[1729146542615,3.2672,153.06,153.04,12.32094621]
[1729146543718,3.2672,153.06,153.04,15.58844621]
[1729146544920,1.4194,153.11,153.04,15.58844621]
[1729146544921,3.2673,153.05,153.04,3.28094621]
[1729146545120,4.84,153.08,153.04,9.04]
[1729146545426,4.84,153.08,153.04,12.35024952]
[1729146545822,3.2673,153.06,153.04,12.35024952]
[1729146547431,3.2673,153.05,153.04,3.31024952]
[1729146547631,9.04,153.07,153.01,17.1481]
[1729146548022,3.2675,153.05,153.02,3.268]
[1729146548321,3.2675,153.05,153.02,15.58425727]
[1729146548522,3.2675,153.05,153.02,12.308]
[1729146549229,3.2675,153.05,153.02,15.58523769]
[1729146552923,4.84,153.08,153.05,3.2672]
[1729146553523,8.1068,153.08,153.05,3.2672]
[1729146553724,4.84,153.08,153.04,9.04]
[1729146553924,4.84,153.08,153.04,12.3075]
[1729146555436,3.267,153.07,153.04,12.3075]
[1729146559834,3.267,153.07,153.05,9.04]
[1729146562835,13.88,153.08,153.02,3.27723769]
[1729146563036,3.2674,153.05,153.02,12.3079]
[1729146563233,3.2674,153.05,153.02,15.58806956]
[1729146566342,3.2674,153.05,153.02,3.28016956]
[1729146566537,3.2674,153.05,153.04,9.04]
[1729146566845,3.2674,153.05,153.04,12.37367313]
[1729146567147,3.2672,153.06,153.04,12.37367313]
[1729146567339,13.88,153.08,153.04,3.33367313]
[1729146567340,4.84,153.08,153.04,3.33367313]
[1729146567545,4.84,153.09,153.05,9.04]
[1729146567741,3.2669,153.08,153.05,9.04]
[1729146568451,3.267,153.07,153.05,9.04]
[1729146573142,1.4194,153.11,153.06,9.04]
[1729146573346,15.2139,153.12,153.08,9.04]
[1729146574053,15.2139,153.12,153.08,12.31331644]
[1729146574447,3.2664,153.1,153.08,12.31331644]
[1729146575748,3.2665,153.09,153.08,3.27331644]
[1729146575946,3.2665,153.09,153.06,9.04]
[1729146576149,3.2665,153.09,153.06,12.23029873]
[1729146576447,3.2665,153.09,153.06,15.49729873]
[1729146580440,3.2664,153.1,153.07,3.2669]
[1729146580645,6.1739,153.12,153.06,12.23029873]
[1729146580846,15.2139,153.12,153.06,12.23029873]
[1729146581443,3.2665,153.09,153.06,15.49739873]
[1729146581648,9.04,153.11,153.06,12.23029873]
[1729146583457,3.2666,153.09,153.06,12.23029873]
[1729146586157,3.2666,153.09,153.06,15.49739873]
[1729146596064,3.2668,153.08,153.06,3.19029873]
[1729146596256,3.2668,153.08,153.05,12.3073]
[1729146596754,3.2668,153.08,153.05,15.52680405]
[1729146598260,3.2666,153.09,153.06,12.3071]
[1729146599056,3.2666,153.09,153.06,15.57726099]
[1729146600864,3.2664,153.1,153.08,9.04]
[1729146602550,127.74647779,153.14,153.09,9.04]
[1729146602858,132.56647779,153.14,153.11,9.04]
[1729146603159,3.2656,153.13,153.11,9.04]
[1729146603562,3.2656,153.13,153.11,12.30852705]
[1729146604961,3.2656,153.13,153.11,3.26852705]
[1729146605257,3.2656,153.13,153.09,12.3063]
[1729146605457,132.56647779,153.14,153.09,9.04]
[1729146605662,132.56647779,153.14,153.09,12.32683632]
[1729146606663,3.2658,153.13,153.1,3.2662]
[1729146608767,4.82,153.17,153.12,9.04]
[1729146608951,69.52749459,153.3,153.14,9.04]
[1729146608952,4.2052,153.21,153.14,9.04]
[1729146609152,4.2052,153.21,153.14,12.3054]
[1729146609153,9.04,153.2,153.14,12.3054]
[1729146609558,9.04,153.2,153.14,9.04]
[1729146609856,3.2644,153.19,153.16,9.04]
[1729146610053,9.04,153.2,153.16,9.04]
[1729146610250,3.2647,153.18,153.16,9.04]
[1729146611066,1.4369,153.21,153.17,9.04]
[1729146611265,1.4369,153.21,153.19,9.04]
[1729146611563,13.86,153.24,153.19,12.22762289]
[1729146611759,3.2637,153.23,153.19,15.49192289]
[1729146612565,3.2637,153.23,153.2,9.04]
[1729146613060,3.2637,153.22,153.2,9.04]
[1729146613560,3.2637,153.22,153.19,12.22762289]
[1729146614362,3.2636,153.23,153.19,15.49182289]
[1729146614869,3.2638,153.22,153.19,12.22762289]
[1729146615164,4.82,153.24,153.2,9.04]
[1729146616067,4.82,153.24,153.2,12.28147355]
[1729146616269,13.86,153.24,153.2,12.28147355]
[1729146616567,3.2637,153.23,153.2,12.28147355]
[1729146619463,3.2639,153.22,153.2,3.24147355]
[1729146619768,3.2639,153.22,153.19,9.04]
[1729146620377,3.2636,153.23,153.19,15.63656728]
[1729146620668,3.2636,153.23,153.2,9.04]
[1729146620856,4.82,153.27,153.22,9.04]
[1729146621669,3.2629,153.26,153.22,15.64075616]
[1729146621863,4.82,153.27,153.22,12.37715616]
[1729146622269,13.86,153.27,153.22,12.37715616]
[1729146622575,9.04,153.25,153.22,3.33715616]
[1729146622769,9.04,153.24,153.2,9.04]
[1729146623162,3.2634,153.24,153.21,9.04]
[1729146623771,3.2631,153.25,153.21,12.3038]
[1729146626770,3.2633,153.25,153.21,12.3038]
[1729146627573,3.2633,153.25,153.22,9.04]
[1729146631171,4.82,153.27,153.22,9.04]
[1729146631368,3.263,153.26,153.22,12.3036]
[1729146632267,4.82,153.27,153.24,9.04]
[1729146632768,4.82,153.27,153.23,9.04]
[1729146633366,3.263,153.26,153.23,9.04]
[1729146633968,9.04,153.25,153.2,3.29177267]
[1729146634179,9.04,153.25,153.2,9.04]
[1729146634769,3.2636,153.23,153.2,12.36050466]
[1729146636780,3.2637,153.22,153.2,12.36050466]
[1729146637772,3.2634,153.24,153.2,12.36050466]
[1729146638072,10.4305,153.26,153.22,9.04]
[1729146638266,10.4305,153.26,153.2,9.04]
[1729146638471,10.4305,153.26,153.2,12.34091466]
[1729146639379,3.2636,153.23,153.2,12.34091466]
[1729146639780,3.2636,153.23,153.2,15.60501466]
[1729146639975,3.2636,153.23,153.22,9.04]
[1729146643382,3.2634,153.24,153.22,9.04]
[1729146651386,3.2639,153.22,153.2,12.34091466]
[1729146651984,9.04,153.25,153.2,3.30091466]
[1729146652190,3.2639,153.21,153.19,9.04]
[1729146652388,3.2639,153.21,153.19,12.2830094]
[1729146652992,3.2639,153.21,153.2,9.04]
[1729146653493,3.2638,153.22,153.2,9.04]
[1729146653692,3.2638,153.22,153.21,9.04]
[1729146654490,3.2638,153.22,153.21,12.37715616]
[1729146654890,11.8802,153.26,153.21,12.37715616]
[1729146655088,3.2636,153.23,153.21,12.37715616]
[1729146655291,11.8802,153.26,153.21,12.37715616]
[1729146655991,9.04,153.25,153.21,3.33715616]
[1729146656197,9.04,153.25,153.2,9.04]
[1729146656397,3.2637,153.22,153.2,9.04]
[1729146656695,3.2637,153.22,153.2,12.30924417]
[1729146657190,3.2639,153.21,153.2,3.26924417]
[1729146659396,3.2639,153.21,153.19,9.04]
[1729146659793,3.2639,153.21,153.19,12.30434667]
[1729146660093,4.82,153.23,153.13,2.8352]
[1729146660094,3.2651,153.16,153.13,2.8352]
[1729146660298,4.82,153.19,153.15,9.04]
[1729146660496,4.82,153.19,153.17,9.04]
[1729146660693,3.2643,153.2,153.17,9.04]
[1729146661296,3.2644,153.19,153.17,9.04]
[1729146662495,13.86,153.22,153.17,9.04]
[1729146663097,3.2643,153.2,153.17,9.04]
[1729146663300,4.82,153.22,153.17,9.04]
[1729146663799,3.2642,153.2,153.17,9.04]
[1729146663994,13.86,153.22,153.16,9.04]
[1729146664395,3.2645,153.19,153.16,9.04]
[1729146664797,9.04,153.19,153.13,15.2989]
[1729146666399,3.2648,153.17,153.14,3.2654]
[1729146666999,9.04,153.16,153.11,3.22193002]
[1729146667197,9.04,153.15,153.07,2.8109]
[1729146667406,9.04,153.15,153.1,9.04]
[1729146668001,3.2658,153.13,153.1,9.04]
[1729146668598,4.82,153.18,153.1,9.04]
[1729146668801,9.04,153.16,153.11,9.04]
[1729146669002,4.82,153.18,153.11,9.04]
[1729146669204,3.2652,153.16,153.12,3.2658]
[1729146669799,4.82,153.18,153.14,9.04]
[1729146670104,3.2649,153.17,153.14,9.04]
[1729146670802,12.3049,153.17,153.13,12.3056]
[1729146671402,3.2652,153.15,153.11,12.3059]
[1729146671603,4.82,153.18,153.11,9.04]
[1729146671807,9.04,153.17,153.13,9.04]
[1729146672000,3.2651,153.16,153.13,12.3055]
[1729146672208,12.3051,153.16,153.13,3.2655]
[1729146672711,9.04,153.14,153.08,4.82]
[1729146672906,9.04,153.12,153.07,10.89423949]
[1729146673099,9.04,153.12,153.07,19.93423949]
[1729146673307,9.04,153.1,153.07,3.26333949]
[1729146673610,9.04,153.1,153.04,9.04]
[1729146673807,9.04,153.08,153.03,12.83783633]
[1729146674103,9.04,153.08,153.03,20.41203633]
[1729146674511,3.2667,153.08,153.05,9.04]
[1729146675406,3.2667,153.08,153.04,3.2674]
[1729146676301,9.04,153.08,153.03,8.10433633]
[1729146676505,9.04,153.09,153.04,9.04]
[1729146677012,12.3065,153.09,153.06,3.2671]
[1729146677309,12.3065,153.09,153.04,9.04]
[1729146678508,12.3065,153.09,153.05,3.2673]
[1729146680710,12.3065,153.09,153.06,3.2671]
[1729146681306,3.2665,153.09,153.06,3.2671]
[1729146681508,4.82,153.11,153.05,9.04]
[1729146681815,1.3871,153.13,153.06,9.04]
[1729146682011,15.2471,153.13,153.08,9.04]
[1729146682414,3.266,153.12,153.08,12.3065]
[1729146683808,3.266,153.12,153.09,3.2664]
[1729146684410,13.86,153.13,153.09,3.2664]
[1729146684411,17.1257,153.13,153.09,3.2664]
[1729146685518,3.2659,153.12,153.09,3.2664]
[1729146686212,12.3059,153.12,153.09,3.2664]
[1729146686517,12.3059,153.12,153.08,12.3066]
[1729146688610,17.1257,153.13,153.09,3.2665]
[1729146689215,4.82,153.15,153.09,9.04]
[1729146689416,9.04,153.14,153.09,9.04]
[1729146689718,9.04,153.14,153.1,3.2662]
[1729146689918,12.3055,153.14,153.1,3.2662]
[1729146690117,9.04,153.14,153.09,9.04]
[1729146690310,12.3055,153.14,153.11,3.266]
[1729146690515,12.3055,153.14,153.11,3.25525695]
[1729146690718,9.04,153.13,153.09,3.2665]
[1729146691022,12.3058,153.13,153.09,3.2665]
[1729146693528,3.2659,153.12,153.09,3.2665]
[1729146696525,4.2481,153.17,153.1,9.04]
[1729146696827,3.2654,153.14,153.1,9.04]
[1729146697422,3.2654,153.14,153.11,3.2659]
[1729146697624,3.2654,153.14,153.11,6.47803354]
[1729146698726,9.04,153.16,153.11,3.21213354]
[1729146698922,3.2652,153.15,153.12,3.2658]
[1729146699227,12.3052,153.15,153.12,3.18806807]
[1729146699430,12.3052,153.15,153.11,3.266]
[1729146699627,12.3052,153.15,153.11,6.5631903]
[1729146699932,12.3052,153.15,153.11,3.266]
[1729146700423,12.3052,153.15,153.11,6.5805061]
[1729146700629,12.3052,153.15,153.11,3.266]
[1729146701133,12.3052,153.15,153.11,6.52398471]
[1729146701835,9.04,153.15,153.11,3.25798471]
[1729146702030,9.04,153.15,153.1,3.2662]
[1729146702336,3.2657,153.13,153.1,3.2662]
[1729146703632,3.2657,153.13,153.08,2.8278]
[1729146703633,3.266,153.12,153.08,10.4654]
[1729146703838,3.266,153.12,153.08,1.4254]
[1729146704137,9.0481,153.17,153.06,4.8]
[1729146704138,9.04,153.11,153.06,4.8]
[1729146704330,3.2664,153.1,153.07,3.2668]
[1729146705131,3.2664,153.1,153.06,4.8]
[1729146705333,3.2664,153.1,153.08,3.2667]
[1729146705537,9.04,153.11,153.08,3.2667]
[1729146705731,12.3062,153.11,153.08,3.2667]
[1729146706133,9.04,153.11,153.08,3.2667]
[1729146706333,3.2663,153.1,153.08,3.2667]
[1729146707736,9.04,153.11,153.06,4.8]
[1729146707926,9.04,153.11,153.06,13.84]
[1729146708131,9.04,153.11,153.06,4.8]
[1729146708335,3.2663,153.1,153.08,3.2667]
[1729146709034,3.2669,153.08,153.04,15.2146]
[1729146709631,3.2669,153.08,153.05,3.2672]
[1729146709930,3.2669,153.08,153.04,15.2146]
[1729146710132,3.2669,153.08,153.05,3.2672]
[1729146710729,3.2669,153.08,153.06,3.2671]
[1729146712636,3.2666,153.09,153.06,12.3071]
[1729146713232,3.2666,153.09,153.06,9.04]
[1729146713439,3.2666,153.09,153.07,3.2668]
[1729146713938,3.2665,153.09,153.06,12.3071]
[1729146714835,12.3065,153.09,153.06,3.2671]
[1729146715036,3.2673,153.06,153.03,6.55203633]
[1729146715238,9.04,153.07,153.03,6.55203633]
[1729146716039,3.2672,153.06,153.03,6.55203633]
[1729146716344,3.2672,153.06,153.03,15.59203633]
[1729146717445,3.267,153.07,153.04,12.3074]
[1729146718739,3.267,153.07,153.05,3.2673]
[1729146719335,3.2668,153.08,153.05,3.2673]
[1729146719947,3.2665,153.09,153.06,3.267]
[1729146720241,6.1927,153.11,153.07,9.04]
[1729146720443,4.6367,153.12,153.09,3.2664]
[1729146720747,127.7512647,153.15,153.09,12.26788958]
[1729146720943,127.7512647,153.15,153.1,9.04]
[1729146721447,13.84,153.16,153.12,9.04]
[1729146721448,4.8,153.16,153.12,9.04]
[1729146721839,9.04,153.16,153.12,9.04]
[1729146722044,3.2654,153.15,153.12,9.04]
[1729146723052,3.2658,153.13,153.1,3.20958829]
[1729146723236,3.2658,153.13,153.09,17.1064]
[1729146723637,3.2658,153.13,153.09,20.33824765]
[1729146724348,3.2659,153.12,153.09,8.03184765]
[1729146724541,3.2659,153.12,153.09,3.23184765]
[1729146724742,3.2659,153.12,153.08,12.3066]
[1729146725345,3.2659,153.12,153.08,15.58222641]
[1729146725950,3.2659,153.12,153.09,12.3063]
[1729146726144,3.2655,153.14,153.11,9.04]
[1729146726343,3.2655,153.14,153.11,12.36756862]
[1729146729247,9.04,153.15,153.11,3.32756862]
[1729146729454,9.04,153.13,153.09,9.04]
[1729146729751,9.04,153.13,153.09,12.29210387]
[1729146730250,12.3058,153.13,153.09,15.55850387]
[1729146731763,9.04,153.11,153.09,3.25210387]
[1729146731961,9.04,153.11,153.08,3.2666]
[1729146732256,12.3066,153.09,153.08,3.34423902]
[1729146732558,4.8,153.12,153.07,9.04]
[1729146732856,4.8,153.12,153.08,9.04]
[1729146733059,3.2661,153.11,153.08,9.04]
[1729146733651,3.2661,153.11,153.08,12.2937217]
[1729146737863,3.2661,153.11,153.08,15.5604217]
[1729146738265,4.8,153.12,153.09,3.2664]
[1729146738456,4.8,153.12,153.09,12.3064]
[1729146738859,12.3058,153.13,153.09,9.04]
[1729146739663,12.3058,153.13,153.09,12.3064]
[1729146740271,3.2659,153.12,153.09,3.2664]
[1729146741566,3.2664,153.1,153.08,3.2537217]
[1729146741770,9.04,153.1,153.05,9.04]
[1729146742069,9.04,153.1,153.05,12.30625259]
[1729146742668,3.2666,153.09,153.05,15.57345259]
[1729146742873,9.04,153.1,153.05,15.57345259]
[1729146743174,3.2668,153.08,153.05,15.57345259]
[1729146749075,25.8929252,153.18,153.07,9.04]
[1729146749273,9.04,153.15,153.09,9.04]
[1729146749569,9.04,153.14,153.09,9.04]
[1729146749972,9.04,153.14,153.09,12.31517555]
[1729146750278,9.04,153.14,153.09,9.04]
[1729146750481,3.266,153.12,153.09,15.636799]
[1729146750876,9.04,153.14,153.09,12.370399]
[1729146751076,3.2662,153.11,153.09,12.370399]
[1729146752973,4.8,153.17,153.09,15.636699]
[1729146753178,9.04,153.14,153.09,15.636699]
[1729146753378,9.04,153.12,153.09,3.330399]
[1729146753581,3.2663,153.11,153.07,12.3067]
[1729146753880,3.2663,153.11,153.08,9.04]
[1729146754578,4.8,153.13,153.08,12.25386029]
[1729146754883,4.8,153.13,153.1,9.04]
[1729146755279,8.0657,153.13,153.1,12.3062]
[1729146756583,3.2657,153.13,153.1,12.3062]
[1729146756783,3.2654,153.15,153.11,9.04]
[1729146756985,9.094,153.18,153.14,9.04]
[1729146757177,7.6646,153.18,153.14,9.04]
[1729146757381,3.2651,153.16,153.13,9.04]
[1729146757880,7.6646,153.18,153.13,9.04]
[1729146758087,3.2649,153.17,153.13,9.04]
[1729146758482,3.2649,153.17,153.13,12.3055]